[Event "DVM U14 2024"]
[Site "Heidelberg"]
[Date "2024.12.28"]
[Round "3"]
[White "Kaplan, Arne"]
[Black "Kalinski, Jan"]
[Result "1-0"]
[ECO "B87"]
[WhiteElo "1710"]
[BlackElo "1700"]
[Annotator "NA RC"]
[PlyCount "93"]
[EventDate "2024.12.23"]
[EventType "team-tourn"]
[EventRounds "7"]
[EventCountry "GER"]
[SourceTitle "playchess.com"]
[Source "ChessBase"]
[SourceQuality "1"]
[TimeControl "40/5400+30:1800+30"]

1. e4 {[%emt 0:00:06]} c5 {[%emt 0:00:15]} 2. Nf3 {[%emt 0:00:12]} d6 {[%emt 0:00:12]} 3. d4 {[%emt 0:00:34]} cxd4 {[%emt 0:04:09]} 4. Nxd4 {[%emt 0:00:17]} Nf6 {[%emt 0:00:06]} 5. Nc3 {[%emt 0:00:18]} a6 {[%emt 0:00:14]} 6. Bc4 {[%emt 0:03:34]} e6 {[%emt 0:00:35]} 7. Bb3 {[%emt 0:00:09]} Be7 {[%emt 0:00:22]} 8. O-O {[%emt 0:00:37]} O-O {[%emt 0:00:09]} 9. Be3 {[%emt 0:01:12]} b5 {[%emt 0:00:28]} 10. f3 {[%emt 0:00:28]} Bb7 {[%emt 0:00:11]} 11. a3 {[%emt 0:09:18]} Nbd7 {[%emt 0:00:48]} 12. Qe2 {[%emt 0:01:25]} Nc5 {[%emt 0:00:31]} 13. Ba2 {[%emt 0:00:34]} Rc8 {[%emt 0:00:33]} 14. Rad1 {[%emt 0:01:47]} Qd7 {[%emt 0:04:10]} 15. b4 {[%emt 0:06:41]} Na4 {[%emt 0:26:23]} 16. Nxa4 {[%emt 0:00:19]} bxa4 {[%emt 0:00:08]} 17. c4 {[%emt 0:01:54]} Rfd8 {[%emt 0:19:33]} 18. c5 {[%emt 0:11:55]} d5 {[%emt 0:02:06]} 19. e5 {[%emt 0:04:25]} Ne8 {[%emt 0:00:43]} 20. Rc1 {[%emt 0:01:32]} f6 {[%emt 0:05:12]} 21. f4 {[%emt 0:01:28]} Rc7 {[%emt 0:02:04]} 22. c6 {[%emt 0:11:13]} Bxc6 {[%emt 0:00:38]} 23. Qxa6 {[%emt 0:00:30]} Bb7 {[%emt 0:01:45]} 24. Qxe6+ {[%emt 0:00:41]} Qxe6 {[%emt 0:00:25]} 25. Nxe6 {[%emt 0:00:12]} Rxc1 {[%emt 0:00:07]} 26. Rxc1 {[%emt 0:00:11]} Rd7 {[%emt 0:00:23]} 27. Nd4 {[%emt 0:01:13]} fxe5 {[%emt 0:02:07]} 28. fxe5 {[%emt 0:02:01]} Bd8 {[%emt 0:00:17]} 29. Bb1 {[%emt 0:03:35]} Re7 {[%emt 0:00:21]} 30. Bg5 {[%emt 0:00:23]} Rd7 {[%emt 0:00:06]} 31. Bxd8 {[%emt 0:00:47]} Rxd8 {[%emt 0:00:05]} 32. Ne6 {[%emt 0:00:32]} Rd7 {[%emt 0:00:52]} 33. Rf1 {[%emt 0:00:08]} Rf7 {[%emt 0:00:36]} 34. Rxf7 {[%emt 0:00:06]} Kxf7 {[%emt 0:00:08]} 35. Nd8+ {[%emt 0:00:03]} Ke7 {[%emt 0:00:11]} 36. Nxb7 {[%emt 0:00:05]} Ke6 {[%emt 0:00:05]} 37. Nc5+ {[%emt 0:00:27]} Kxe5 {[%emt 0:00:09]} 38. Nxa4 {[%emt 0:00:27]} Nc7 {[%emt 0:00:14]} 39. Nc5 {[%emt 0:01:02]} Kd4 {[%emt 0:00:38]} 40. Bd3 {[%emt 0:00:49]} Kc3 {[%emt 0:00:29]} 41. b5 {[%emt 0:30:28]} Na8 {[%emt 0:30:25]} 42. Bxh7 {[%emt 0:02:23]} Kd4 {[%emt 0:00:20]} 43. Nd7 {[%emt 0:00:08]} Kc4 {[%emt 0:01:13]} 44. b6 {[%emt 0:00:07]} Nxb6 {[%emt 0:00:12]} 45. Nxb6+ {[%emt 0:00:06]} Kb3 {[%emt 0:00:13]} 46. Nxd5 {[%emt 0:00:12]} Kxa3 {[%emt 0:00:06]} 47. g4 {[%emt 0:00:08]} 1-0

[Event "DVM U14 2024"]
[Site "Heidelberg"]
[Date "2024.12.28"]
[Round "3"]
[White "Bodriyenko, Daniel"]
[Black "Schucht, Adrian"]
[Result "1-0"]
[ECO "C78"]
[WhiteElo "1694"]
[BlackElo "1617"]
[Annotator "NA RC"]
[PlyCount "63"]
[EventDate "2024.12.23"]
[EventType "team-tourn"]
[EventRounds "7"]
[EventCountry "GER"]
[SourceTitle "playchess.com"]
[Source "ChessBase"]
[SourceQuality "1"]
[TimeControl "40/5400+30:1800+30"]

1. e4 {[%emt 0:00:04]} e5 {[%emt 0:00:05]} 2. Nf3 {[%emt 0:00:05]} Nc6 {[%emt 0:00:05]} 3. Bb5 {[%emt 0:00:05]} a6 {[%emt 0:00:10]} 4. Ba4 {[%emt 0:00:07]} Nf6 {[%emt 0:01:04]} 5. O-O {[%emt 0:00:10]} b5 {[%emt 0:01:18]} 6. Bb3 {[%emt 0:00:08]} Na5 {[%emt 0:00:13]} 7. c3 {[%emt 0:00:54]} Nxb3 {[%emt 0:00:18]} 8. Qxb3 {[%emt 0:00:21]} d6 {[%emt 0:00:41]} 9. d3 {[%emt 0:01:44]} Be6 {[%emt 0:00:52]} 10. Qc2 {[%emt 0:01:10]} Be7 {[%emt 0:00:47]} 11. h3 {[%emt 0:02:02]} O-O {[%emt 0:01:39]} 12. Be3 {[%emt 0:00:47]} Rc8 {[%emt 0:03:07]} 13. Nbd2 {[%emt 0:02:33]} c5 {[%emt 0:04:39]} 14. Rfe1 {[%emt 0:02:09]} Qd7 {[%emt 0:01:19]} 15. Nf1 {[%emt 0:01:24]} Rfd8 {[%emt 0:03:58]} 16. Ng3 {[%emt 0:01:33]} Rc7 {[%emt 0:08:22]} 17. Qd2 {[%emt 0:08:14]} Rdc8 {[%emt 0:01:11]} 18. Ng5 {[%emt 0:17:43]} a5 {[%emt 0:13:45]} 19. Nxe6 {[%emt 0:02:23]} fxe6 {[%emt 0:02:30]} 20. Rac1 {[%emt 0:01:24]} b4 {[%emt 0:02:26]} 21. d4 {[%emt 0:06:24]} exd4 {[%emt 0:05:23]} 22. cxd4 {[%emt 0:01:05]} Qa4 {[%emt 0:08:09]} 23. b3 {[%emt 0:04:12]} Qb5 {[%emt 0:00:21]} 24. dxc5 {[%emt 0:04:18]} dxc5 {[%emt 0:00:38]} 25. Rc4 {[%emt 0:01:12]} Nd7 {[%emt 0:03:09]} 26. Bf4 {[%emt 0:04:15]} e5 {[%emt 0:02:23]} 27. Be3 {[%emt 0:00:56]} Nb6 {[%emt 0:00:11]} 28. Rc2 {[%emt 0:01:08]} c4 {[%emt 0:02:57]} 29. Bxb6 {[%emt 0:02:29]} Qxb6 {[%emt 0:00:06]} 30. Rxc4 {[%emt 0:00:12]} Rxc4 {[%emt 0:00:11]} 31. bxc4 {[%emt 0:00:09]} Rxc4 {[%emt 0:00:19]} 32. Qd5+ {[%emt 0:00:14]} 1-0

[Event "DVM U14 2024"]
[Site "Heidelberg"]
[Date "2024.12.28"]
[Round "3"]
[White "Glavev, Danail"]
[Black "Kovalyov, Dima"]
[Result "1/2-1/2"]
[ECO "B13"]
[WhiteElo "1690"]
[BlackElo "1829"]
[Annotator "NA RC"]
[PlyCount "96"]
[EventDate "2024.12.23"]
[EventType "team-tourn"]
[EventRounds "7"]
[EventCountry "GER"]
[SourceTitle "playchess.com"]
[Source "ChessBase"]
[SourceQuality "1"]
[TimeControl "40/5400+30:1800+30"]

1. e4 {[%emt 0:00:03]} c6 {[%emt 0:00:04]} 2. d4 {[%emt 0:00:07]} d5 {[%emt 0:00:02]} 3. exd5 {[%emt 0:00:07]} cxd5 {[%emt 0:00:03]} 4. Nf3 {[%emt 0:01:05]} Nf6 {[%emt 0:00:06]} 5. Bd3 {[%emt 0:00:40]} Nc6 {[%emt 0:00:21]} 6. c3 {[%emt 0:00:55]} Bg4 {[%emt 0:00:11]} 7. O-O {[%emt 0:00:33]} e6 {[%emt 0:00:06]} 8. Bg5 {[%emt 0:02:00]} Be7 {[%emt 0:01:45]} 9. Nbd2 {[%emt 0:00:25]} O-O {[%emt 0:01:07]} 10. Qb3 {[%emt 0:05:57]} Qc7 {[%emt 0:05:09]} 11. Rac1 {[%emt 0:02:15]} Rac8 {[%emt 0:04:42]} 12. Qc2 {[%emt 0:05:20]} h6 {[%emt 0:01:54]} 13. Be3 {[%emt 0:03:28]} a6 {[%emt 0:04:46]} 14. h3 {[%emt 0:00:23]} Bxf3 {[%emt 0:00:07]} 15. Nxf3 {[%emt 0:00:01]} b5 {[%emt 0:04:30]} 16. Qd2 {[%emt 0:21:46]} Ne4 {[%emt 0:03:07]} 17. Qc2 {[%emt 0:01:52]} f5 {[%emt 0:00:56]} 18. Nd2 {[%emt 0:07:44]} f4 {[%emt 0:00:53]} 19. Nxe4 {[%emt 0:05:33]} dxe4 {[%emt 0:00:09]} 20. Bxe4 {[%emt 0:01:44]} fxe3 {[%emt 0:00:07]} 21. fxe3 {[%emt 0:00:02]} Bg5 {[%emt 0:00:34]} 22. Rfe1 {[%emt 0:01:26]} Ne7 {[%emt 0:02:02]} 23. Rcd1 {[%emt 0:02:27]} Nd5 {[%emt 0:00:44]} 24. Bxd5 {[%emt 0:02:39]} exd5 {[%emt 0:00:07]} 25. e4 {[%emt 0:01:17]} dxe4 {[%emt 0:00:19]} 26. Qxe4 {[%emt 0:01:29]} Kh8 {[%emt 0:02:08]} 27. d5 {[%emt 0:01:03]} Qc5+ {[%emt 0:00:38]} 28. Kh1 {[%emt 0:00:14]} Rcd8 {[%emt 0:00:32]} 29. Qe6 {[%emt 0:01:44]} Rf6 {[%emt 0:00:35]} 30. Qe4 {[%emt 0:02:23]} Rfd6 {[%emt 0:00:21]} 31. Qf5 {[%emt 0:00:13]} Qc8 {[%emt 0:01:11]} 32. Qf3 {[%emt 0:01:27]} Qd7 {[%emt 0:00:57]} 33. Re5 {[%emt 0:02:35]} Rf6 {[%emt 0:01:14]} 34. Qd3 {[%emt 0:03:27]} Qd6 {[%emt 0:02:47]} 35. Re2 {[%emt 0:07:06]} Rdf8 {[%emt 0:00:18]} 36. Ree1 {[%emt 0:02:01]} Bh4 {[%emt 0:01:34]} 37. Re4 {[%emt 0:04:12]} Bg3 {[%emt 0:00:55]} 38. Re3 {[%emt 0:00:35]} Bh4 {[%emt 0:03:08]} 39. Re4 {[%emt 0:00:20]} Bg5 {[%emt 0:00:46]} 40. Ree1 {[%emt 0:00:29]} Qd7 {[%emt 0:11:56]} 41. b3 {[%emt 0:37:37]} Bh4 {[%emt 0:32:12]} 42. Re4 {[%emt 0:04:02]} Rf4 {[%emt 0:06:40]} 43. c4 {[%emt 0:00:00]} bxc4 {[%emt 0:00:00]} 44. bxc4 {[%emt 0:00:00]} Rxe4 {[%emt 0:00:00]} 45. Qxe4 {[%emt 0:00:00]} Be7 {[%emt 0:00:00]} 46. d6 {[%emt 0:00:00]} Bf6 {[%emt 0:13:49]} 47. c5 {[%emt 0:00:00]} Rc8 {[%emt 0:04:48]} 48. Qd5 {[%emt 0:07:15]} Qc6 {[%emt 0:00:02]} 1/2-1/2

[Event "DVM U14 2024"]
[Site "Heidelberg"]
[Date "2024.12.28"]
[Round "3"]
[White "Bohatyrova, Mariia"]
[Black "Bemmann, Carlo"]
[Result "1/2-1/2"]
[ECO "A85"]
[WhiteElo "1682"]
[BlackElo "1757"]
[Annotator "NA RC"]
[PlyCount "106"]
[EventDate "2024.12.23"]
[EventType "team-tourn"]
[EventRounds "7"]
[EventCountry "GER"]
[SourceTitle "playchess.com"]
[Source "ChessBase"]
[SourceQuality "1"]
[TimeControl "40/5400+30:1800+30"]

1. d4 {[%emt 0:00:04]} f5 {[%emt 0:00:11]} 2. c4 {[%emt 0:01:27]} Nf6 {[%emt 0:00:43]} 3. Nc3 {[%emt 0:03:56]} e6 {[%emt 0:00:07]} 4. Nf3 {[%emt 0:01:03]} Bb4 {[%emt 0:01:01]} 5. Bf4 {[%emt 0:03:57]} Bxc3+ {[%emt 0:05:13]} 6. bxc3 {[%emt 0:00:12]} d6 {[%emt 0:00:57]} 7. e3 {[%emt 0:04:51]} b6 {[%emt 0:03:43]} 8. Be2 {[%emt 0:02:39]} O-O {[%emt 0:07:50]} 9. O-O {[%emt 0:00:42]} Ne4 {[%emt 0:04:11]} 10. Qc2 {[%emt 0:17:11]} c5 {[%emt 0:05:24]} 11. h3 {[%emt 0:09:12]} Bb7 {[%emt 0:05:15]} 12. Rab1 {[%emt 0:12:40]} Qe7 {[%emt 0:12:02]} 13. Bh2 {[%emt 0:14:51]} Nc6 {[%emt 0:07:32]} 14. Nd2 {[%emt 0:04:58]} Na5 {[%emt 0:11:57]} 15. Nb3 {[%emt 0:04:16]} Nxb3 {[%emt 0:03:07]} 16. axb3 {[%emt 0:00:19]} Rac8 {[%emt 0:07:26]} 17. f3 {[%emt 0:01:10]} Nf6 {[%emt 0:01:00]} 18. Qb2 {[%emt 0:03:59]} d5 {[%emt 0:03:46]} 19. Ra1 {[%emt 0:04:03]} Ra8 {[%emt 0:04:00]} 20. Rfd1 {[%emt 0:03:32]} Rfc8 {[%emt 0:01:54]} 21. Rac1 {[%emt 0:00:40]} dxc4 {[%emt 0:02:10]} 22. bxc4 {[%emt 0:00:34]} Nd7 {[%emt 0:01:24]} 23. Rd2 {[%emt 0:01:13]} e5 {[%emt 0:01:23]} 24. Rcd1 {[%emt 0:02:41]} exd4 {[%emt 0:01:21]} 25. exd4 {[%emt 0:00:26]} Nf6 {[%emt 0:01:58]} 26. d5 {[%emt 0:00:49]} Rd8 {[%emt 0:01:44]} 27. Kh1 {[%emt 0:00:18]} Qd7 {[%emt 0:00:30]} 28. Bd3 {[%emt 0:00:38]} g6 {[%emt 0:00:41]} 29. Bb1 {[%emt 0:00:45]} Re8 {[%emt 0:00:48]} 30. Ba2 {[%emt 0:00:27]} Ba6 {[%emt 0:01:22]} 31. Re2 {[%emt 0:00:24]} Rxe2 {[%emt 0:00:57]} 32. Qxe2 {[%emt 0:00:03]} Re8 {[%emt 0:00:32]} 33. Qd2 {[%emt 0:00:13]} Kf7 {[%emt 0:00:56]} 34. Re1 {[%emt 0:00:41]} Rxe1+ {[%emt 0:00:14]} 35. Qxe1 {[%emt 0:00:02]} Qe8 {[%emt 0:00:13]} 36. Qd2 {[%emt 0:00:25]} Kg7 {[%emt 0:01:06]} 37. Bg3 {[%emt 0:01:55]} Nd7 {[%emt 0:01:05]} 38. Qe1 {[%emt 0:00:32]} Qxe1+ {[%emt 0:00:16]} 39. Bxe1 {[%emt 0:00:05]} Kf6 {[%emt 0:00:15]} 40. Bg3 {[%emt 0:00:22]} g5 {[%emt 0:00:50]} 41. f4 {[%emt 0:30:31]} h6 {[%emt 0:30:15]} 42. Kg1 {[%emt 0:02:03]} gxf4 {[%emt 0:01:28]} 43. Bxf4 {[%emt 0:00:13]} Ne5 {[%emt 0:00:03]} 44. Bxe5+ {[%emt 0:00:00]} Kxe5 {[%emt 0:00:00]} 45. Kf2 {[%emt 0:00:00]} Bb7 {[%emt 0:00:00]} 46. g3 {[%emt 0:00:00]} b5 {[%emt 0:00:00]} 47. cxb5 {[%emt 0:00:00]} Bxd5 {[%emt 0:00:00]} 48. c4 {[%emt 0:00:00]} Be6 {[%emt 0:00:00]} 49. Ke3 {[%emt 0:00:00]} Bc8 {[%emt 0:00:00]} 50. Bb1 {[%emt 0:00:00]} Be6 {[%emt 0:00:00]} 51. Bd3 {[%emt 0:00:00]} Bf7 {[%emt 0:00:00]} 52. Be2 {[%emt 0:00:00]} Be6 {[%emt 0:00:00]} 53. Bd3 {[%emt 0:00:00]} Bd7 {[%emt 0:00:00]} 1/2-1/2

[Event "DVM U14 2024"]
[Site "Heidelberg"]
[Date "2024.12.28"]
[Round "3"]
[White "Varazi, Maxime"]
[Black "Klein, Deniz"]
[Result "0-1"]
[ECO "B94"]
[WhiteElo "1673"]
[BlackElo "1852"]
[Annotator "NA RC"]
[PlyCount "132"]
[EventDate "2024.12.23"]
[EventType "team-tourn"]
[EventRounds "7"]
[EventCountry "GER"]
[SourceTitle "playchess.com"]
[Source "ChessBase"]
[SourceQuality "1"]
[TimeControl "40/5400+30:1800+30"]

1. e4 {[%emt 0:00:02]} c5 {[%emt 0:00:04]} 2. Nf3 {[%emt 0:00:04]} d6 {[%emt 0:00:07]} 3. d4 {[%emt 0:00:05]} cxd4 {[%emt 0:00:04]} 4. Nxd4 {[%emt 0:00:06]} Nf6 {[%emt 0:00:05]} 5. Nc3 {[%emt 0:00:04]} a6 {[%emt 0:00:05]} 6. Bg5 {[%emt 0:00:11]} Nbd7 {[%emt 0:00:05]} 7. f4 {[%emt 0:00:33]} Qc7 {[%emt 0:00:15]} 8. Qf3 {[%emt 0:00:37]} h6 {[%emt 0:00:50]} 9. Bh4 {[%emt 0:00:46]} g5 {[%emt 0:03:05]} 10. fxg5 {[%emt 0:01:52]} hxg5 {[%emt 0:00:40]} 11. Bxg5 {[%emt 0:00:57]} Qc5 {[%emt 0:00:23]} 12. Be3 {[%emt 0:01:11]} Ne5 {[%emt 0:00:07]} 13. Qe2 {[%emt 0:01:06]} Nfg4 {[%emt 0:03:59]} 14. Nd5 {[%emt 0:20:50]} Nxe3 {[%emt 0:23:00]} 15. Qxe3 {[%emt 0:00:58]} Bh6 {[%emt 0:19:35]} 16. Qc3 {[%emt 0:02:48]} Qxc3+ {[%emt 0:02:41]} 17. bxc3 {[%emt 0:00:49]} Kf8 {[%emt 0:05:30]} 18. Rb1 {[%emt 0:00:27]} Ra7 {[%emt 0:07:21]} 19. Be2 {[%emt 0:01:33]} Bg4 {[%emt 0:04:27]} 20. Rf1 {[%emt 0:02:31]} Bxe2 {[%emt 0:01:48]} 21. Kxe2 {[%emt 0:01:24]} Ke8 {[%emt 0:02:36]} 22. a4 {[%emt 0:14:00]} e6 {[%emt 0:04:48]} 23. Nb6 {[%emt 0:00:50]} Bf8 {[%emt 0:03:40]} 24. h3 {[%emt 0:01:32]} Rh4 {[%emt 0:01:41]} 25. Kd1 {[%emt 0:07:50]} Rxe4 {[%emt 0:03:09]} 26. Kc1 {[%emt 0:00:55]} d5 {[%emt 0:01:19]} 27. Nf3 {[%emt 0:04:02]} Nxf3 {[%emt 0:03:33]} 28. Rxf3 {[%emt 0:00:17]} Re1+ {[%emt 0:00:26]} 29. Kb2 {[%emt 0:00:07]} Rxb1+ {[%emt 0:00:13]} 30. Kxb1 {[%emt 0:00:12]} a5 {[%emt 0:00:31]} 31. c4 {[%emt 0:01:45]} Bc5 {[%emt 0:00:49]} 32. cxd5 {[%emt 0:02:33]} Bxb6 {[%emt 0:00:05]} 33. dxe6 {[%emt 0:00:07]} fxe6 {[%emt 0:00:08]} 34. g4 {[%emt 0:00:10]} Bd4 {[%emt 0:01:44]} 35. c3 {[%emt 0:00:11]} Bg7 {[%emt 0:00:25]} 36. g5 {[%emt 0:00:20]} Ke7 {[%emt 0:04:48]} 37. h4 {[%emt 0:00:59]} Ra8 {[%emt 0:00:14]} 38. h5 {[%emt 0:00:09]} Rh8 {[%emt 0:01:23]} 39. g6 {[%emt 0:01:25]} Bf6 {[%emt 0:00:47]} 40. Rh3 {[%emt 0:00:44]} Bg7 {[%emt 0:02:22]} 41. Rf3 {[%emt 0:30:09]} Rf8 {[%emt 0:30:42]} 42. Rh3 {[%emt 0:00:10]} Bh6 {[%emt 0:00:00]} 43. Kc2 {[%emt 0:00:00]} e5 {[%emt 0:00:00]} 44. Kd3 {[%emt 0:00:00]} Rf4 {[%emt 0:00:00]} 45. Rg3 {[%emt 0:00:00]} e4+ {[%emt 0:00:00]} 46. Ke2 {[%emt 0:00:00]} Kf8 {[%emt 0:00:00]} 47. c4 {[%emt 0:00:00]} Rh4 {[%emt 0:00:00]} 48. Rb3 {[%emt 0:00:00]} Rxh5 {[%emt 0:00:00]} 49. Rxb7 {[%emt 0:00:00]} Rc5 {[%emt 0:00:00]} 50. Rb5 {[%emt 0:00:00]} Rxc4 {[%emt 0:00:22]} 51. Rxa5 {[%emt 0:00:00]} Rc2+ {[%emt 0:00:00]} 52. Kd1 {[%emt 0:00:00]} Ra2 {[%emt 0:00:00]} 53. Ra7 {[%emt 0:00:00]} e3 {[%emt 0:00:00]} 54. Rf7+ {[%emt 0:00:00]} Kg8 {[%emt 0:00:00]} 55. Re7 {[%emt 0:00:00]} Rxa4 {[%emt 0:00:00]} 56. Ke2 {[%emt 0:00:00]} Rg4 {[%emt 0:00:00]} 57. Re6 {[%emt 0:00:00]} Kg7 {[%emt 0:00:00]} 58. Re7+ {[%emt 0:00:00]} Kxg6 {[%emt 0:00:00]} 59. Re6+ {[%emt 0:00:00]} Kh7 {[%emt 0:00:00]} 60. Re7+ {[%emt 0:00:00]} Rg7 {[%emt 0:00:00]} 61. Re6 {[%emt 0:00:00]} Rg2+ {[%emt 0:00:00]} 62. Kf1 {[%emt 0:00:00]} Rb2 {[%emt 0:00:14]} 63. Ke1 {[%emt 0:00:00]} Kg7 {[%emt 0:00:20]} 64. Kf1 {[%emt 0:00:00]} Bg5 {[%emt 0:00:27]} 65. Re5 {[%emt 0:00:00]} Kf6 {[%emt 0:00:07]} 66. Rc5 {[%emt 0:00:00]} e2+ {[%emt 0:00:10]} 0-1

[Event "DVM U14 2024"]
[Site "Heidelberg"]
[Date "2024.12.28"]
[Round "3"]
[White "Bock, Leonas"]
[Black "Allen, Phillipp"]
[Result "0-1"]
[ECO "D00"]
[WhiteElo "1668"]
[BlackElo "1793"]
[Annotator "NA RC"]
[PlyCount "132"]
[EventDate "2024.12.23"]
[EventType "team-tourn"]
[EventRounds "7"]
[EventCountry "GER"]
[SourceTitle "playchess.com"]
[Source "ChessBase"]
[SourceQuality "1"]
[TimeControl "40/5400+30:1800+30"]

1. d4 {[%emt 0:00:06]} Nf6 {[%emt 0:00:09]} 2. Nf3 {[%emt 0:00:14]} g6 {[%emt 0:00:12]} 3. Nc3 {[%emt 0:00:12]} d5 {[%emt 0:00:13]} 4. Bf4 {[%emt 0:00:19]} Bg7 {[%emt 0:00:50]} 5. Qd2 {[%emt 0:02:24]} O-O {[%emt 0:04:28]} 6. Bh6 {[%emt 0:07:09]} Ne4 {[%emt 0:06:22]} 7. Nxe4 {[%emt 0:04:40]} dxe4 {[%emt 0:00:18]} 8. Bxg7 {[%emt 0:02:26]} Kxg7 {[%emt 0:00:31]} 9. Ng5 {[%emt 0:20:38]} Qd5 {[%emt 0:05:15]} 10. c4 {[%emt 0:04:40]} Qf5 {[%emt 0:16:27]} 11. Qe3 {[%emt 0:06:11]} Qa5+ {[%emt 0:03:47]} 12. Qd2 {[%emt 0:01:08]} Qxd2+ {[%emt 0:01:15]} 13. Kxd2 {[%emt 0:00:05]} Rd8 {[%emt 0:05:42]} 14. e3 {[%emt 0:01:08]} f5 {[%emt 0:03:52]} 15. Be2 {[%emt 0:12:27]} e5 {[%emt 0:13:55]} 16. Kc3 {[%emt 0:02:36]} h6 {[%emt 0:01:09]} 17. Nh3 {[%emt 0:00:32]} exd4+ {[%emt 0:00:32]} 18. exd4 {[%emt 0:00:06]} g5 {[%emt 0:01:51]} 19. Rad1 {[%emt 0:07:53]} f4 {[%emt 0:03:14]} 20. Rhe1 {[%emt 0:08:05]} Bf5 {[%emt 0:02:36]} 21. f3 {[%emt 0:07:16]} e3 {[%emt 0:03:40]} 22. Bd3 {[%emt 0:01:01]} Kf6 {[%emt 0:01:03]} 23. Be4 {[%emt 0:03:27]} c6 {[%emt 0:04:07]} 24. Ng1 {[%emt 0:04:18]} Nd7 {[%emt 0:01:00]} 25. Ne2 {[%emt 0:00:39]} Nb6 {[%emt 0:04:52]} 26. g3 {[%emt 0:01:55]} Bxe4 {[%emt 0:01:02]} 27. fxe4 {[%emt 0:00:14]} f3 {[%emt 0:00:13]} 28. Rf1 {[%emt 0:00:53]} g4 {[%emt 0:00:14]} 29. Nf4 {[%emt 0:00:49]} Ke7 {[%emt 0:05:18]} 30. Rde1 {[%emt 0:00:18]} e2 {[%emt 0:00:15]} 31. Rf2 {[%emt 0:00:07]} Rd7 {[%emt 0:01:02]} 32. h3 {[%emt 0:01:28]} Na4+ {[%emt 0:01:18]} 33. Kb3 {[%emt 0:00:48]} Rxd4 {[%emt 0:01:07]} 34. Nxe2 {[%emt 0:00:29]} Nc5+ {[%emt 0:03:36]} 35. Kc3 {[%emt 0:00:22]} Rd3+ {[%emt 0:00:53]} 36. Kc2 {[%emt 0:00:50]} Re3 {[%emt 0:02:51]} 37. hxg4 {[%emt 0:00:34]} Rxe2+ {[%emt 0:01:00]} 38. Rexe2 {[%emt 0:00:14]} fxe2 {[%emt 0:00:08]} 39. Rxe2 {[%emt 0:00:04]} Rg8 {[%emt 0:00:39]} 40. Rh2 {[%emt 0:01:09]} Rxg4 {[%emt 0:00:32]} 41. Rxh6 {[%emt 0:01:02]} Rxe4 {[%emt 0:03:22]} 42. Kc3 {[%emt 0:06:00]} Rg4 {[%emt 0:01:15]} 43. b3 {[%emt 0:13:10]} Rxg3+ {[%emt 0:00:49]} 44. Kb4 {[%emt 0:00:58]} Ne6 {[%emt 0:02:29]} 45. Rh8 {[%emt 0:01:15]} Rg5 {[%emt 0:03:18]} 46. Rh7+ {[%emt 0:03:01]} Rg7 {[%emt 0:00:18]} 47. Rh5 {[%emt 0:00:13]} Kd7 {[%emt 0:00:25]} 48. Ra5 {[%emt 0:01:25]} c5+ {[%emt 0:02:38]} 49. Ka3 {[%emt 0:00:51]} a6 {[%emt 0:00:56]} 50. b4 {[%emt 0:01:07]} Rg3+ {[%emt 0:01:17]} 51. Ka4 {[%emt 0:00:43]} Kc6 {[%emt 0:03:13]} 52. b5+ {[%emt 0:01:01]} Kb6 {[%emt 0:00:13]} 53. bxa6 {[%emt 0:00:16]} bxa6 {[%emt 0:00:08]} 54. a3 {[%emt 0:00:39]} Nd4 {[%emt 0:00:45]} 55. Rxa6+ {[%emt 0:00:13]} Kb7 {[%emt 0:01:32]} 56. Ra5 {[%emt 0:02:39]} Rg5 {[%emt 0:05:38]} 57. Ra6 {[%emt 0:00:28]} Nc6 {[%emt 0:00:35]} 58. Kb5 {[%emt 0:00:53]} Na7+ {[%emt 0:03:20]} 59. Ka5 {[%emt 0:00:30]} Rg3 {[%emt 0:03:55]} 60. Ka4 {[%emt 0:00:09]} Rxa3+ {[%emt 0:00:06]} 61. Kxa3 {[%emt 0:00:07]} Kxa6 {[%emt 0:00:12]} 62. Ka4 {[%emt 0:00:15]} Nc6 {[%emt 0:00:10]} 63. Kb3 {[%emt 0:00:10]} Ka5 {[%emt 0:00:14]} 64. Ka3 {[%emt 0:00:10]} Nd4 {[%emt 0:00:11]} 65. Kb2 {[%emt 0:00:17]} Kb4 {[%emt 0:00:10]} 66. Kc1 {[%emt 0:00:20]} Kxc4 {[%emt 0:00:10]} 0-1